bitfinex-derivatives/quotes_SOLF0:USTF0_20250518
["timestamp","ask_amount","ask_price","bid_price","bid_amount"]
[1747594243858,72.5068,169.8,169.73,66.68]
[1747594244362,66.62,169.8,169.73,66.68]
[1747594245156,72.5069,169.8,169.73,66.68]
[1747594245361,66.62,169.8,169.73,66.68]
[1747594245760,72.507,169.8,169.73,66.68]
[1747594246559,66.62,169.8,169.73,66.68]
[1747594247658,66.62,169.8,169.76,5.888]
[1747594247957,72.5068,169.8,169.76,5.888]
[1747594248260,133.32,169.82,169.73,66.68]
[1747594248755,133.32,169.82,169.81,5.8864]
[1747594248951,66.64,169.82,169.81,5.8864]
[1747594249158,5.3440343,169.86,169.81,5.8864]
[1747594249463,71.9840343,169.86,169.78,66.64]
[1747594249651,138.6240343,169.86,169.78,66.64]
[1747594249964,133.28,169.86,169.78,66.64]
[1747594250661,133.28,169.86,169.81,5.8862]
[1747594251263,139.1649,169.86,169.81,5.8862]
[1747594251464,2.85191981,169.85,169.8,5.8866]
[1747594251666,133.28,169.86,169.8,5.8866]
[1747594251855,2.85193557,169.85,169.8,5.8866]
[1747594252061,2.84330466,169.84,169.74,135.2968]
[1747594252261,133.28,169.86,169.74,135.2968]
[1747594252462,2.84313034,169.85,169.74,135.2968]
[1747594252662,133.28,169.86,169.74,135.2968]
[1747594252860,5.8856,169.84,169.8,5.8864]
[1747594253061,66.64,169.86,169.74,135.2968]
[1747594253267,66.62,169.85,169.74,135.2968]
[1747594253469,66.62,169.85,169.81,5.8862]
[1747594253660,66.62,169.85,169.74,135.2968]
[1747594253861,2.84347131,169.84,169.74,135.2968]
[1747594254062,5.8855,169.84,169.8,5.8865]
[1747594254367,66.62,169.85,169.8,5.8865]
[1747594254670,5.8856,169.84,169.8,5.8865]
[1747594254864,66.62,169.85,169.74,135.2968]
[1747594255062,2.84330974,169.84,169.74,135.2968]
[1747594255258,2.84330974,169.83,169.74,133.28]
[1747594255462,2.84330974,169.82,169.74,66.64]
[1747594255660,66.62,169.85,169.74,66.64]
[1747594255872,5.8863,169.82,169.74,66.64]
[1747594256169,66.62,169.85,169.74,66.64]
[1747594256469,16.97952617,169.84,169.74,66.64]
[1747594256678,2.84289245,169.83,169.76,5.8879]
[1747594256862,2.84289245,169.82,169.74,66.64]
[1747594257063,14.13663372,169.8,169.7,66.64]
[1747594257362,75.11684025,169.79,169.67,7.28954498]
[1747594257564,5.8894,169.73,169.67,7.28954498]
[1747594257769,66.62,169.73,169.67,7.28954498]
[1747594258170,66.62,169.73,169.7,5.89]
[1747594258369,66.62,169.73,169.67,7.28954498]
[1747594258672,66.62,169.73,169.68,5.8907]
[1747594258862,66.62,169.73,169.67,7.28954498]
[1747594259259,66.62,169.73,169.67,5.891]
[1747594259669,5.89,169.71,169.68,5.8909]
[1747594259860,66.62,169.73,169.62,68.5251]
[1747594260068,5.9,169.71,169.62,66.64]
[1747594260471,66.64,169.7,169.62,66.64]
[1747594260767,66.62,169.73,169.62,66.64]
[1747594261072,66.62,169.74,169.73,5.8892]
[1747594261466,66.64,169.79,169.77,5.8875]
[1747594261979,66.64,169.79,169.7,5.7231]
[1747594263073,66.64,169.79,169.78,5.8875]
[1747594263278,66.64,169.79,169.73,66.66]
[1747594263576,2.83257292,169.78,169.7,1.8775]
[1747594263769,66.64,169.79,169.69,66.66]
[1747594264377,5.8876,169.78,169.69,66.66]
[1747594264876,5.8878,169.77,169.69,66.66]
[1747594265063,66.64,169.79,169.69,66.66]
[1747594265269,2.82881625,169.78,169.69,66.66]
[1747594265469,66.64,169.79,169.69,66.66]
[1747594265870,66.64,169.79,169.76,5.888]
[1747594266176,1.9348,169.81,169.69,66.66]
[1747594266379,66.62,169.8,169.7,66.62]
[1747594266876,66.62,169.8,169.71,1.9982]
[1747594267270,66.62,169.8,169.79,5.8871]
[1747594268680,5.3440343,169.83,169.74,66.66]
[1747594268872,5.3440343,169.83,169.82,5.8861]
[1747594269067,72.4556,169.87,169.75,70.6489]
[1747594269269,66.62,169.86,169.75,68.6681]
[1747594269567,2.83245623,169.85,169.75,68.6681]
[1747594269770,5.8855,169.84,169.78,5.8873]
[1747594269967,5.8855,169.84,169.75,68.6681]
[1747594270171,66.62,169.86,169.75,68.6681]
[1747594270368,8.71816213,169.85,169.79,5.8868]
[1747594270567,66.62,169.86,169.79,5.8868]
[1747594270781,2.83331671,169.85,169.83,5.8854]
[1747594271079,133.24,169.87,169.79,66.6]
[1747594271280,167.26209497,169.91,169.8,68.4772]
[1747594271484,7.04209497,169.91,169.8,70.3246]
[1747594271680,66.62,169.93,169.8,70.3246]
[1747594272494,66.62,169.93,169.92,5.8826]
[1747594272982,66.62,169.93,169.9,5.8832]
[1747594273177,66.62,169.93,169.88,66.6]
[1747594275281,72.5026,169.93,169.88,72.4837]
[1747594275477,66.62,169.93,169.88,66.6]
[1747594276589,66.62,169.93,169.84,66.58]
[1747594276887,5.8836,169.9,169.85,5.8848]
[1747594277289,3.8911,169.92,169.84,66.58]
[1747594277482,5.8836,169.89,169.85,5.885]
[1747594277684,3.8911,169.92,169.84,66.58]
[1747594277882,2.83079226,169.91,169.84,66.58]
[1747594278081,3.8911,169.92,169.84,66.58]
[1747594278688,2.83142436,169.91,169.84,66.58]
[1747594278889,3.8911,169.92,169.84,66.58]
[1747594279091,2.83206226,169.91,169.84,66.58]
[1747594279282,5.8834,169.9,169.86,5.8846]
[1747594279690,3.8911,169.92,169.84,66.58]
[1747594280002,2.83202584,169.91,169.84,66.58]
[1747594280189,3.8911,169.92,169.84,66.58]
[1747594280489,5.8834,169.9,169.86,5.8846]
[1747594280788,3.8911,169.92,169.84,66.58]
[1747594280984,2.83136357,169.91,169.84,66.58]
[1747594281293,3.8911,169.92,169.84,66.58]
[1747594281588,3.8911,169.92,169.89,5.8835]
[1747594281883,3.8911,169.92,169.84,66.58]
[1747594282284,2.83050838,169.91,169.84,66.58]
[1747594282489,3.8911,169.92,169.84,66.58]
[1747594282690,16.96744537,169.91,169.83,5.8855]
[1747594282889,66.58,169.9,169.8,68.4372]
[1747594283792,5.8843,169.88,169.83,5.8857]
[1747594283992,72.4443,169.88,169.8,68.4372]
[1747594284193,66.56,169.88,169.8,68.4372]
[1747594284390,66.56,169.93,169.9,5.8832]
[1747594284594,5.42956244,169.94,169.85,66.58]
[1747594284788,10.56314245,169.99,169.83,66.56]
[1747594284789,9.497e-05,169.97,169.87,14.13663372]
[1747594285088,9.497e-05,169.97,169.96,5.8812]
[1747594285412,9.497e-05,169.97,169.93,66.58]
[1747594286394,2.82702399,169.96,169.88,508.56]
[1747594286704,5.8829,169.92,169.87,5.8841]
[1747594286894,67.06,169.95,169.86,70.4083]
[1747594287087,2.82381549,169.94,169.86,68.5212]
[1747594287283,2.82363752,169.93,169.86,66.58]
[1747594287505,2.82312765,169.92,169.82,66.58]
[1747594287696,2.82312765,169.91,169.87,5.8843]
[1747594287897,67.8,169.9,169.82,66.58]
[1747594288196,67.8,169.9,169.87,5.8843]
[1747594288692,5.8841,169.88,169.82,66.58]
[1747594288995,67.8,169.9,169.82,66.58]
[1747594289710,67.78,169.94,169.83,67.78]
[1747594289992,67.78,169.94,169.84,1.914]
[1747594290294,67.78,169.94,169.84,3.8402]
[1747594291000,5.8823,169.93,169.88,5.8837]
[1747594291198,67.78,169.94,169.84,3.8402]
[1747594291498,5.8823,169.93,169.88,5.8838]
[1747594291799,5.8823,169.93,169.84,3.8402]
[1747594291999,67.78,169.94,169.84,3.8402]
[1747594293094,66.58,169.97,169.84,3.8402]
[1747594293299,67.5,169.93,169.84,3.8402]
[1747594293492,2.82445256,169.92,169.82,66.58]
[1747594293694,68.5101,169.92,169.81,66.56]
[1747594293895,6.809127,169.91,169.81,66.56]
[1747594294094,2.824627,169.9,169.81,66.56]
[1747594294395,14.13663372,169.88,169.77,68.5877]
[1747594294704,136.904627,169.87,169.77,68.5877]
[1747594294896,134.08,169.87,169.77,68.5877]
[1747594296898,139.9644,169.87,169.82,5.8858]
[1747594297101,70.5445,169.91,169.77,2.0277]
[1747594297303,135.9747,169.91,169.78,66.56]
[1747594297504,5.8842,169.88,169.83,5.8855]
[1747594297697,135.9747,169.91,169.79,69.2696]
[1747594298202,135.9747,169.91,169.8,1.9516]
[1747594298503,141.8579,169.91,169.85,5.8848]
[1747594298704,141.8579,169.91,169.83,66.56]
[1747594298906,135.9747,169.91,169.83,66.56]
[1747594299202,135.9747,169.91,169.87,5.8843]
[1747594299405,133.94,169.91,169.83,66.56]
[1747594299609,67.38,169.91,169.83,66.56]
[1747594299908,67.38,169.91,169.89,5.8834]
[1747594300808,67.38,169.91,169.9,5.8833]
[1747594301009,67.38,169.91,169.83,66.56]
[1747594301508,67.38,169.91,169.89,5.8836]
[1747594302206,67.38,169.91,169.83,66.56]
[1747594302804,67.38,169.91,169.84,67.08]
[1747594303802,67.38,169.91,169.9,5.8833]
[1747594303997,67.32,169.95,169.84,67.08]
[1747594304203,67.32,169.95,169.88,67.32]
[1747594304404,134.26,169.95,169.88,67.32]
[1747594305410,2.82985327,169.94,169.88,67.32]
[1747594305604,134.26,169.95,169.88,67.32]
[1747594305808,5.8826,169.93,169.88,73.2037]
[1747594306109,134.26,169.95,169.85,67.32]
[1747594306110,2.82964337,169.92,169.85,67.32]
[1747594306418,134.26,169.95,169.85,67.32]
[1747594306899,134.26,169.95,169.91,5.8826]
[1747594307609,134.26,169.95,169.92,5.8825]
[1747594308114,67.32,169.95,169.92,5.8825]
[1747594308412,134.0,169.95,169.92,5.8825]
[1747594309010,134.0,169.95,169.85,67.32]
[1747594309716,134.0,169.95,169.91,5.8827]
[1747594309907,67.32,169.95,169.91,5.8827]
[1747594310107,133.9,169.95,169.85,67.32]
[1747594310309,133.9,169.95,169.92,5.8824]
[1747594311814,133.9,169.95,169.85,67.32]
[1747594312018,2.83724348,169.94,169.85,67.3]
[1747594312221,2.83724348,169.93,169.85,67.3]
[1747594312516,2.83724348,169.92,169.83,5.45617585]
[1747594312718,4.68714348,169.91,169.83,5.45617585]
[1747594312909,69.39724348,169.9,169.85,5.885]
[1747594313110,2.83724348,169.89,169.83,5.45617585]
[1747594313317,66.56,169.9,169.83,5.45617585]
[1747594313519,2.83806205,169.89,169.83,5.45617585]
[1747594313818,2.83806205,169.88,169.83,5.45617585]
[1747594314015,66.56,169.9,169.83,5.45617585]
[1747594314213,2.83816763,169.89,169.82,67.3]
[1747594314415,2.83816763,169.88,169.82,67.3]
[1747594314716,2.83896574,169.87,169.83,5.8856]
[1747594314914,2.83896574,169.86,169.79,67.3]
[1747594315121,5.8856,169.84,169.8,5.8867]
[1747594315421,2.83832749,169.83,169.8,5.8867]
[1747594315618,2.83936131,169.82,169.8,5.8867]
[1747594315919,5.8856,169.84,169.8,5.8867]
[1747594316215,8.7237762,169.83,169.79,5.8871]
[1747594316417,2.8380762,169.82,169.79,5.8871]
[1747594316615,5.8857,169.83,169.79,5.8871]
[1747594316814,2.83671873,169.82,169.78,5.8874]
[1747594317020,2.83641788,169.81,169.77,5.45617585]
[1747594317318,69.41615037,169.8,169.77,5.45617585]
[1747594317621,2.83615037,169.79,169.71,10.92857429]
[1747594317812,14.13663372,169.77,169.71,10.92857429]
[1747594318012,2.83615037,169.76,169.71,10.92857429]
[1747594318211,136.73615037,169.75,169.71,10.92857429]
[1747594318413,2.83615037,169.74,169.71,10.92857429]
[1747594318614,133.9,169.75,169.64,74.63263177]
[1747594318919,66.58,169.75,169.65,1.17889773]
[1747594319118,66.58,169.79,169.65,1.17889773]
[1747594319319,2.83194472,169.78,169.65,15.31553145]
[1747594319508,2.0452,169.84,169.65,15.31553145]
[1747594319717,2.83060495,169.83,169.69,14.13663372]
[1747594319916,7.9306,169.84,169.7,139.856]
[1747594320112,2.83057259,169.83,169.7,139.856]
[1747594320408,2.83054414,169.82,169.7,139.856]
[1747594320610,2.0452,169.84,169.7,139.856]
[1747594320822,2.83031358,169.83,169.7,139.856]
[1747594321022,2.0452,169.84,169.7,139.856]
[1747594321321,66.58,169.85,169.7,139.856]
[1747594321823,2.83058076,169.84,169.7,139.856]
[1747594322116,66.58,169.85,169.7,5.956]
[1747594322318,5.8874,169.79,169.73,5.8891]
[1747594322620,5.8874,169.79,169.71,134.42]
[1747594323020,67.1,169.8,169.71,134.42]
[1747594323222,67.06,169.84,169.71,134.42]
[1747594323421,67.06,169.84,169.71,148.55663372]
[1747594324726,68.9099,169.88,169.71,148.55663372]
[1747594324923,74.7939,169.88,169.82,5.8858]
[1747594325419,74.7939,169.88,169.8,67.34]
[1747594325420,2.83020432,169.87,169.8,67.34]
[1747594325631,68.9099,169.88,169.8,67.34]
[1747594325918,7.7339,169.88,169.83,5.8857]
[1747594326125,66.96,169.88,169.8,67.34]
[1747594326627,2.83283795,169.87,169.8,67.34]
[1747594326923,66.96,169.88,169.8,67.34]
[1747594327122,2.83281234,169.87,169.8,67.34]
[1747594327424,66.96,169.88,169.8,67.34]
[1747594327625,5.885,169.86,169.81,5.8861]
[1747594328421,66.96,169.88,169.71,14.13663372]
[1747594328615,4.7342101,169.87,169.72,73.142]
[1747594328819,2.8319101,169.86,169.73,66.8]
[1747594329123,70.1719101,169.85,169.73,67.34]
[1747594329324,2.8319101,169.84,169.73,67.34]
[1747594329526,69.63155207,169.83,169.73,67.34]
[1747594329720,66.8,169.83,169.73,67.34]
[1747594330128,72.6857,169.83,169.78,5.8872]
[1747594330325,66.8,169.83,169.73,67.34]
[1747594331027,2.83102083,169.82,169.73,67.34]
[1747594331232,66.8,169.83,169.73,67.34]
[1747594332425,8.71730811,169.82,169.73,67.34]
[1747594332641,66.8,169.83,169.73,67.34]
[1747594333138,66.66,169.86,169.73,67.34]
[1747594334131,66.8,169.89,169.74,14.13663372]
[1747594334333,93.8,169.93,169.74,14.13663372]
[1747594334637,69.4725474,169.92,169.74,14.13663372]
[1747594334838,8.7157474,169.91,169.86,5.8846]
[1747594335031,5.8832,169.91,169.86,5.8846]
[1747594336037,5.8835,169.9,169.84,5.885]
[1747594336258,66.64,169.92,169.84,5.885]
[1747594336601,2.83531722,169.91,169.83,66.8]
[1747594336769,2.83531722,169.9,169.83,66.8]
[1747594336973,2.83527499,169.89,169.79,66.78]
[1747594337267,5.8852,169.85,169.79,66.78]
[1747594337465,66.76,169.87,169.79,66.78]
[1747594337651,70.7618,169.87,169.79,66.78]
[1747594337852,5.8858,169.83,169.75,66.78]
[1747594338149,72.706,169.87,169.75,66.78]
[1747594338345,2.83435027,169.86,169.75,66.78]
[1747594338546,2.83435027,169.85,169.75,66.78]
[1747594338754,2.83435027,169.84,169.75,66.78]
[1747594339052,66.78,169.83,169.8,5.8867]
[1747594339248,66.78,169.83,169.75,66.78]
[1747594340741,139.486,169.87,169.75,66.78]
[1747594340975,8.72079726,169.86,169.81,5.8862]
[1747594341151,139.486,169.87,169.75,66.78]
[1747594341367,66.76,169.87,169.75,66.78]
[1747594341971,66.76,169.87,169.83,5.8856]
[1747594342463,66.76,169.87,169.81,66.78]
[1747594342666,133.58,169.91,169.81,66.78]
[1747594342955,133.58,169.91,169.86,5.8845]
[1747594343451,133.58,169.91,169.81,66.78]
[1747594343644,133.58,169.91,169.87,5.8843]
[1747594343943,66.8,169.93,169.81,66.78]
[1747594344252,14.13663372,169.88,169.7,74.22]
[1747594344445,154.00690708,169.87,169.72,1.9039]
[1747594344749,2.83630708,169.86,169.75,5.8884]
[1747594345042,2.83630708,169.85,169.73,1.8585]
[1747594345234,2.83630708,169.84,169.73,1.8585]
[1747594345434,153.1714,169.87,169.73,1.8585]
[1747594345644,5.8854,169.84,169.77,5.8878]
[1747594345835,167.30803372,169.87,169.77,5.8878]
[1747594346037,2.83506441,169.86,169.77,5.8878]
[1747594346362,152.41506441,169.85,169.73,1.8585]
[1747594346539,2.83506441,169.84,169.73,1.8585]
[1747594346847,75.38,169.88,169.73,1.8585]
[1747594348345,75.38,169.88,169.86,5.8845]
[1747594348742,5.42765681,169.9,169.8,74.2]
[1747594348944,5.42765681,169.9,169.89,5.8836]
[1747594349148,5.42765681,169.9,169.81,5.8034]
[1747594349747,75.24,169.92,169.81,5.8034]
[1747594350048,2.84878066,169.91,169.81,5.8034]
[1747594350249,149.44,169.93,169.81,5.8034]
[1747594350439,2.8488513,169.92,169.81,5.8034]
[1747594350640,2.8488513,169.91,169.81,5.8034]
[1747594350841,2.8488513,169.9,169.81,5.8034]
[1747594351043,2.8488513,169.89,169.85,5.885]
[1747594351251,149.44,169.93,169.81,5.8034]
[1747594351547,2.84871114,169.92,169.81,5.8034]
[1747594351735,2.84871114,169.91,169.81,5.8034]
[1747594352040,2.84871114,169.9,169.81,5.8034]
[1747594352240,5.8843,169.88,169.81,1.9069]
[1747594352444,2.84871114,169.87,169.81,1.9069]
[1747594352952,77.04871114,169.87,169.75,1.8718]
[1747594353253,8.63491114,169.86,169.75,1.8718]
[1747594353451,2.84871114,169.85,169.75,1.8718]
[1747594354251,74.2,169.87,169.75,1.8718]
[1747594354451,2.84738747,169.86,169.76,75.24]
[1747594354646,5.767,169.91,169.76,75.24]
[1747594354647,79.967,169.91,169.76,75.24]
[1747594354943,2.84907239,169.9,169.86,5.8844]
[1747594355148,2.84907239,169.89,169.86,5.8844]
[1747594355345,2.84907239,169.88,169.82,74.2]
[1747594355552,74.2,169.91,169.82,74.2]
[1747594355752,2.85079179,169.9,169.83,1.8697]
[1747594355947,2.85079179,169.89,169.83,1.8697]
[1747594356249,5.8834,169.9,169.85,5.8848]
[1747594356452,2.8522955,169.89,169.85,5.8848]
[1747594356642,5.8834,169.9,169.85,5.8848]
[1747594356842,2.85223761,169.89,169.85,5.8848]
[1747594357051,149.3,169.91,169.82,5.8858]
[1747594357052,2.85157561,169.88,169.82,5.8858]
[1747594357386,2.85157561,169.87,169.8,74.2]
[1747594357601,2.85157561,169.86,169.82,5.8859]
[1747594358171,2.85157561,169.85,169.81,5.8863]
[1747594358465,2.85157561,169.85,169.8,74.2]
[1747594359168,2.85157561,169.85,169.83,5.8857]
[1747594359519,2.85157561,169.85,169.8,74.2]
[1747594359685,2.85157561,169.85,169.82,5.886]
[1747594359969,2.85157561,169.85,169.78,3.8972]
[1747594360884,5.8858,169.83,169.78,9.7844]
[1747594361178,74.88,169.86,169.78,3.8972]
[1747594361468,8.73728404,169.85,169.78,3.8972]
[1747594361672,2.85218404,169.84,169.78,3.8972]
[1747594361873,74.88,169.86,169.78,3.8972]
[1747594362058,2.85226685,169.85,169.78,3.8972]
[1747594362273,2.85226685,169.84,169.76,74.2]
[1747594362469,2.85226685,169.83,169.76,74.2]
[1747594362763,2.85226685,169.82,169.78,5.8872]
[1747594362964,2.85226685,169.81,169.78,5.8872]
[1747594363166,76.0667,169.85,169.76,74.2]
[1747594363363,5.887,169.8,169.76,80.0882]
[1747594363555,2.85424622,169.79,169.76,74.2]
[1747594363761,5.887,169.8,169.72,74.2]
[1747594363958,8.74144622,169.79,169.72,74.2]
[1747594364156,2.85404157,169.78,169.72,74.2]
[1747594364358,5.8872,169.79,169.72,74.2]
[1747594364659,2.85504639,169.78,169.72,74.2]
[1747594364858,74.44,169.81,169.72,74.2]
[1747594365067,2.85500873,169.8,169.72,74.2]
[1747594365251,74.44,169.81,169.72,74.2]
[1747594365447,2.85557181,169.8,169.72,74.2]
[1747594365754,74.44,169.81,169.72,74.2]
[1747594365942,2.85550555,169.8,169.72,74.2]
[1747594366145,2.85494073,169.79,169.72,74.2]
[1747594366353,80.3265,169.81,169.72,74.2]
[1747594366545,2.85487065,169.8,169.72,74.2]
[1747594366747,2.85487065,169.79,169.72,74.2]
[1747594366946,2.85487065,169.78,169.72,74.2]
[1747594367154,74.44,169.81,169.72,74.2]
[1747594367355,2.854727,169.8,169.72,74.2]
[1747594367653,5.42765681,169.83,169.72,74.2]
[1747594367955,2.85513109,169.82,169.72,74.2]
[1747594368152,2.85496497,169.81,169.72,74.2]
[1747594368356,5.42765681,169.83,169.72,74.2]
[1747594368652,8.74123947,169.82,169.72,74.2]
[1747594368852,2.85493947,169.81,169.72,74.2]
[1747594369151,5.42765681,169.83,169.72,74.2]
[1747594369453,2.85501006,169.82,169.72,74.2]
[1747594369643,2.85501006,169.81,169.72,74.2]
[1747594369847,2.85489561,169.8,169.72,74.2]
[1747594370046,5.42765681,169.83,169.72,74.2]
[1747594370246,2.85484122,169.82,169.72,74.2]
[1747594370446,2.85484122,169.81,169.72,74.2]
[1747594370656,2.85485375,169.8,169.72,147.8]
[1747594370849,5.42765681,169.83,169.77,5.8877]
[1747594371049,2.85483099,169.82,169.72,147.8]
[1747594371256,2.85483099,169.81,169.72,147.8]
[1747594371557,73.94,169.84,169.78,5.8871]
[1747594371755,5.8861,169.82,169.78,5.8871]
[1747594371947,2.8550746,169.81,169.78,5.8871]
[1747594372454,5.8858,169.83,169.78,5.8871]
[1747594372648,2.8552454,169.82,169.78,5.8871]
[1747594372848,5.8858,169.83,169.78,5.8871]
[1747594373050,2.85523692,169.82,169.72,147.8]
[1747594373348,73.94,169.84,169.72,147.8]
[1747594373548,2.85556192,169.83,169.81,5.8862]
[1747594373852,5.42765681,169.86,169.81,5.8862]
[1747594374052,2.85586726,169.85,169.81,5.8862]
[1747594374253,2.85586726,169.84,169.81,5.8862]
[1747594374454,81.49765681,169.88,169.77,74.22]
[1747594374648,2.85610714,169.87,169.78,3.8931]
[1747594374846,2.85610714,169.86,169.78,5.8221]
[1747594375053,5.42765681,169.88,169.78,5.8221]
[1747594375453,5.42765681,169.88,169.79,508.68]
[1747594375654,7.23046889,169.91,169.81,23.14569019]
[1747594375855,7.23046889,169.91,169.82,146.14]
[1747594376357,6.889e-05,169.91,169.9,5.8833]
[1747594376558,6.889e-05,169.91,169.9,78.9633]
[1747594377654,14.08418994,170.0,169.9,78.96]
[1747594377858,14.08418994,170.0,169.9,73.08]
[1747594378159,3.9847,170.03,169.97,5.8806]
[1747594378358,2.85384214,170.02,169.97,5.8806]
[1747594378558,9.8638,170.03,169.97,5.8806]
[1747594378761,2.85009258,170.02,169.95,5.8812]
[1747594378965,2.85009258,170.01,169.93,73.36]
[1747594379157,5.8798,170.01,169.95,5.8815]
[1747594379352,73.32,170.02,169.93,73.36]
[1747594379555,2.84859453,170.01,169.93,73.36]
[1747594379756,73.32,170.02,169.93,73.36]
[1747594379958,8.72658125,170.01,169.93,73.36]
[1747594380156,73.32,170.02,169.93,73.36]
[1747594380362,73.08,170.05,169.93,73.36]
[1747594380661,5.7439,170.08,169.93,96.50569019]
[1747594380864,73.16,170.11,169.94,2.0367]
[1747594381163,2.84804371,170.1,169.95,73.08]
[1747594381360,75.037,170.12,169.97,23.14569019]
[1747594381561,75.037,170.12,169.98,74.9908]
[1747594381762,75.037,170.12,169.98,89.18924828]
[1747594382061,80.9128,170.12,170.06,5.8777]
[1747594382460,1.917,170.12,170.04,73.06]
[1747594382660,1.917,170.12,170.07,5.8771]
[1747594382863,1.917,170.12,170.04,73.06]
[1747594383257,1.917,170.12,170.07,5.8771]
[1747594383458,1.917,170.12,170.04,73.06]
[1747594384367,7.7927,170.12,170.07,5.8774]
[1747594384665,1.917,170.12,170.07,5.8774]
[1747594384868,3.7656,170.13,170.07,5.8774]
[1747594385068,72.64,170.14,170.04,73.06]
[1747594385263,1.9316,170.16,170.05,2.0475]
[1747594385770,27.0,170.19,170.06,1.8486]
[1747594385968,1.17522623,170.18,170.06,1.8486]
[1747594386574,5.8743,170.17,170.1,5.8761]
[1747594386771,1.17522623,170.18,170.11,73.02]
[1747594388472,1.17522623,170.18,170.13,5.8751]
[1747594388665,1.17522623,170.18,170.11,73.02]
[1747594389368,508.1,170.3,170.11,73.02]
[1747594389563,5.8724,170.22,170.11,73.02]
[1747594389875,72.3,170.24,170.11,73.02]
[1747594390767,5.8737,170.18,170.12,5.8754]
[1747594391072,72.3,170.24,170.11,73.02]
[1747594391268,5.8723,170.22,170.16,5.874]
[1747594391468,72.16,170.23,170.11,73.02]
[1747594392373,5.8733,170.19,170.13,5.8753]
[1747594392570,72.16,170.23,170.11,73.02]
[1747594392769,72.98,170.22,170.11,73.02]
[1747594393069,5.874,170.17,170.12,5.8756]
[1747594393266,72.98,170.22,170.11,73.02]
[1747594393667,72.98,170.22,170.11,78.8957]
[1747594393867,72.98,170.22,170.11,73.02]
[1747594394475,5.8742,170.17,170.12,5.8754]
[1747594395474,5.8743,170.16,170.12,5.8754]
[1747594396077,71.76,170.18,170.11,73.02]
[1747594396573,5.8757,170.12,170.11,73.02]
[1747594396774,5.7911,170.17,170.07,78.8374]
[1747594396974,5.7911,170.17,170.07,72.96]
[1747594397173,5.8761,170.11,170.07,78.8373]
[1747594398177,5.8756,170.13,170.09,5.8767]
[1747594398377,78.7511,170.17,170.07,72.96]
[1747594398674,78.7511,170.17,170.08,5.877]
[1747594398978,78.7511,170.17,170.07,72.96]
[1747594399276,5.8762,170.11,170.07,78.8372]
[1747594399480,78.7511,170.17,170.07,72.96]
[1747594399874,78.7511,170.17,170.08,5.8768]
[1747594400179,78.7511,170.17,170.07,72.96]
[1747594400380,5.8753,170.14,170.1,5.8761]
[1747594400585,78.7511,170.17,170.07,72.96]
[1747594402078,23.07282929,170.13,170.01,580.76]
[1747594402282,143.96,170.12,170.01,580.76]
[1747594403177,70.98,170.11,170.01,580.76]
[1747594403781,5.8768,170.09,170.05,5.878]
[1747594403983,70.98,170.11,170.01,580.76]
[1747594404281,5.8764,170.1,170.05,5.8779]
[1747594404481,5.8764,170.1,170.01,580.76]
[1747594404783,70.98,170.11,170.01,580.76]